fUSD/lending_fUSD_20250629
["ID","MTS","AMOUNT","RATE_DAILY","PERIOD"]
[368467073,1751187043782,-1754.62,0.00027397,3]
[368467075,1751187043793,-490.0,0.00027397,3]
[368467077,1751187043803,-890.47,0.00027397,3]
[368467079,1751187043813,-939.59,0.00027397,3]
[368467081,1751187043823,-502.47272755,0.00027397,3]
[368467083,1751187043833,-490.0,0.00027397,3]
[368467085,1751187043844,-1116.9,0.00027397,3]
[368467088,1751187043857,-1788.69,0.00027397,3]
[368467090,1751187043867,-490.0,0.00027397,3]
[368467092,1751187043878,-490.0,0.00027397,3]
[368467094,1751187043888,-490.0,0.00027397,3]
[368467096,1751187043898,-490.0,0.00027397,3]
[368467098,1751187043908,-692.21,0.00027397,3]
[368467100,1751187043917,-490.0,0.00027397,3]
[368467102,1751187043927,-490.0,0.00027397,3]
[368467104,1751187043937,-490.0,0.00027397,3]
[368467106,1751187043947,-490.0,0.00027397,3]
[368467108,1751187043956,-1143.36,0.00027397,3]
[368467110,1751187043966,-490.0,0.00027397,3]
[368467112,1751187043976,-262.105777,0.00027397,3]
[368467114,1751187043986,-490.0,0.00027397,3]
[368467115,1751187043996,-490.0,0.00027397,3]
[368467116,1751187044006,-490.0,0.00027397,3]
[368467117,1751187044015,-490.0,0.00027397,3]
[368467118,1751187044025,-493.93,0.00027397,3]
[368467120,1751187044035,-500.0,0.00027397,3]
[368467122,1751187044045,-500.0,0.00027397,3]
[368467124,1751187044055,-490.0,0.00027397,3]
[368467127,1751187044064,-1577.57,0.00027397,3]
[368467129,1751187044074,-490.0,0.00027397,3]
[368467131,1751187044084,-2687.2,0.00027397,3]
[368467133,1751187044094,-536.97,0.00027397,3]
[368467135,1751187044104,-300.0,0.00027397,3]
[368467137,1751187044114,-520.0,0.00027397,3]
[368467139,1751187044124,-1932.84,0.00027397,3]
[368467170,1751187044135,-490.0,0.00027397,3]
[368467174,1751187044442,-1562.07,0.00027397,3]
[368467177,1751187044452,-807.97,0.00027397,3]
[368467179,1751187044461,-520.88541484,0.00027397,3]
[368467181,1751187044472,-173.873828,0.00027397,3]
[368467183,1751187044481,-1001.7,0.00027397,3]
[368467185,1751187044491,-1305.35,0.00027397,3]
[368467187,1751187044500,-523.92,0.00027397,3]
[368467189,1751187044510,-490.0,0.00027397,3]
[368467191,1751187044519,-490.0,0.00027397,3]
[368467193,1751187044528,-1501.36,0.00027397,3]
[368467195,1751187044537,-654.29,0.00027397,3]
[368467197,1751187044546,-244.59800318,0.00027397,3]
[368467199,1751187044556,-490.0,0.00027397,3]
[368467201,1751187044565,-2084.79,0.00027397,3]
[368467203,1751187044574,-490.0,0.00027397,3]
[368467205,1751187044583,-490.0,0.00027397,3]
[368467207,1751187044593,-490.0,0.00027397,3]
[368467209,1751187044602,-885.31,0.00027397,3]
[368467211,1751187044612,-490.0,0.00027397,3]
[368467213,1751187044622,-490.0,0.00027397,3]
[368467215,1751187044631,-490.0,0.00027397,3]
[368467217,1751187044641,-809.25,0.00027397,3]
[368467219,1751187044651,-490.0,0.00027397,3]
[368467221,1751187044660,-1125.0,0.00027397,3]
[368467223,1751187044669,-490.0,0.00027397,3]
[368467225,1751187044680,-490.0,0.00027397,3]
[368467227,1751187044689,-2530.68,0.00027397,3]
[368467229,1751187044698,-503.44879557,0.00027397,3]
[368467231,1751187044708,-490.0,0.00027397,3]
[368467233,1751187044717,-490.0,0.00027397,3]
[368467235,1751187044727,-2511.93,0.00027397,3]
[368467237,1751187044736,-490.0,0.00027397,3]
[368467239,1751187044745,-1852.56,0.00027397,3]
[368467241,1751187044755,-490.0,0.00027397,3]
[368467244,1751187044765,-1189.53,0.00027397,3]
[368467246,1751187044775,-490.0,0.00027397,3]
[368467248,1751187044784,-2098.5,0.00027397,3]
[368467250,1751187044793,-203.211667,0.00027397,3]
[368467252,1751187044803,-490.0,0.00027397,3]
[368467254,1751187044812,-490.0,0.00027397,3]
[368467256,1751187044821,-1763.74,0.00027397,3]
[368467258,1751187044830,-490.0,0.00027397,3]
[368467260,1751187044840,-490.0,0.00027397,3]
[368467262,1751187044850,-490.0,0.00027397,3]
[368467264,1751187044861,-2926.62,0.00027397,3]
[368467266,1751187044871,-796.69,0.00027397,3]
[368467268,1751187044881,-784.47,0.00027397,3]
[368467270,1751187044890,-490.0,0.00027397,3]
[368467272,1751187044899,-490.0,0.00027397,3]
[368467274,1751187044909,-490.0,0.00027397,3]
[368467276,1751187044918,-953.55,0.00027397,3]
[368467278,1751187044927,-2622.74,0.00027397,3]
[368467280,1751187044937,-490.0,0.00027397,3]
[368467282,1751187044946,-490.0,0.00027397,3]
[368467284,1751187044957,-490.0,0.00027397,3]
[368467286,1751187044966,-1116.23,0.00027397,3]
[368467288,1751187044975,-554.09,0.00027397,3]
[368467290,1751187044984,-1545.25,0.00027397,3]
[368467292,1751187044993,-495.41059378,0.00027397,3]
[368467294,1751187045003,-490.0,0.00027397,3]
[368467296,1751187045012,-490.0,0.00027397,3]
[368467298,1751187045021,-1186.5,0.00027397,3]
[368467300,1751187045030,-490.0,0.00027397,3]
[368467302,1751187045039,-490.0,0.00027397,3]
[368467304,1751187045049,-490.0,0.00027397,3]
[368467306,1751187045058,-2764.31,0.00027397,3]
[368467308,1751187045067,-490.0,0.00027397,3]
[368467310,1751187045076,-1896.94,0.00027397,3]
[368467312,1751187045086,-744.65,0.00027397,3]
[368467314,1751187045095,-490.0,0.00027397,3]
[368467316,1751187045104,-2779.62,0.00027397,3]
[368467318,1751187045115,-908.21,0.00027397,3]
[368467320,1751187045124,-490.0,0.00027397,3]
[368467323,1751187045134,-614.83,0.00027397,3]
[368467325,1751187045147,-1326.35,0.00027397,3]
[368467327,1751187045156,-499.75,0.00027397,3]
[368467329,1751187045167,-1351.69,0.00027397,3]
[368467331,1751187045176,-490.0,0.00027397,3]
[368467333,1751187045185,-1201.1,0.00027397,3]
[368467335,1751187045195,-630.65,0.00027397,3]
[368467337,1751187045204,-490.0,0.00027397,3]
[368467339,1751187045214,-525.16,0.00027397,3]
[368467341,1751187045224,-1263.16,0.00027397,3]
[368467343,1751187045233,-490.0,0.00027397,3]
[368467345,1751187045243,-1335.51,0.00027397,3]
[368467347,1751187045252,-490.0,0.00027397,3]
[368467349,1751187045262,-1116.29,0.00027397,3]
[368467351,1751187045272,-173.873828,0.00027397,3]
[368467353,1751187045281,-490.0,0.00027397,3]
[368467355,1751187045291,-490.0,0.00027397,3]
[368467357,1751187045301,-1558.33,0.00027397,3]
[368467359,1751187045311,-388.31745591,0.00027397,3]
[368467361,1751187045320,-1682.2,0.00027397,3]
[368467363,1751187045329,-490.0,0.00027397,3]
[368467365,1751187045338,-490.0,0.00027397,3]
[368467367,1751187045348,-513.76,0.00027397,3]
[368467369,1751187045357,-756.58,0.00027397,3]
[368467371,1751187045367,-490.0,0.00027397,3]
[368467373,1751187045377,-490.0,0.00027397,3]
[368467375,1751187045386,-1118.61,0.00027397,3]
[368467377,1751187045396,-853.75,0.00027397,3]
[368467379,1751187045406,-1111.13,0.00027397,3]
[368467381,1751187045415,-490.0,0.00027397,3]
[368467383,1751187045424,-2433.14,0.00027397,3]
[368467386,1751187045434,-1061.27,0.00027397,3]
[368467388,1751187045444,-972.58,0.00027397,3]
[368467390,1751187045453,-1001.28,0.00027397,3]
[368467392,1751187045463,-490.0,0.00027397,3]
[368467394,1751187045474,-490.0,0.00027397,3]
[368467396,1751187045484,-1677.22,0.00027397,3]
[368467398,1751187045493,-490.0,0.00027397,3]
[368467400,1751187045502,-768.88,0.00027397,3]
[368467402,1751187045511,-150.172525,0.00027397,3]
[368467404,1751187045520,-490.0,0.00027397,3]
[368467406,1751187045530,-490.0,0.00027397,3]
[368467408,1751187045539,-1912.74,0.00027397,3]
[368467410,1751187045549,-636.78,0.00027397,3]
[368467412,1751187045558,-490.0,0.00027397,3]
[368467414,1751187045567,-490.0,0.00027397,3]
[368467416,1751187045579,-490.0,0.00027397,3]
[368467418,1751187045588,-490.0,0.00027397,3]
[368467420,1751187045597,-918.29,0.00027397,3]
[368467422,1751187045607,-490.0,0.00027397,3]
[368467424,1751187045616,-1032.86,0.00027397,3]
[368467426,1751187045625,-490.0,0.00027397,3]
[368467428,1751187045635,-490.0,0.00027397,3]
[368467430,1751187045644,-1129.09,0.00027397,3]
[368467432,1751187045653,-2019.22,0.00027397,3]
[368467434,1751187045663,-490.0,0.00027397,3]
[368467435,1751187045672,-490.0,0.00027397,3]
[368467436,1751187045681,-490.76,0.00027397,3]
[368467437,1751187045691,-1204.77,0.00027397,3]
[368467438,1751187045700,-2771.09,0.00027397,3]
[368467439,1751187045710,-490.0,0.00027397,3]
[368467440,1751187045719,-2255.28,0.00027397,3]
[368467441,1751187045728,-490.0,0.00027397,3]
[368467442,1751187045737,-212.23621554,0.00027397,3]
[368467443,1751187045747,-490.0,0.00027397,3]
[368467444,1751187045756,-490.0,0.00027397,3]
[368467445,1751187045765,-490.0,0.00027397,3]
[368467446,1751187045774,-490.0,0.00027397,3]
[368467447,1751187045784,-490.0,0.00027397,3]
[368467448,1751187045793,-490.0,0.00027397,3]
[368467449,1751187045803,-490.0,0.00027397,3]
[368467450,1751187045812,-565.14,0.00027397,3]
[368467451,1751187045821,-1083.88,0.00027397,3]
[368467452,1751187045830,-570.38,0.00027397,3]
[368467453,1751187045840,-490.0,0.00027397,3]
[368467454,1751187045851,-1852.34,0.00027397,3]
[368467455,1751187045865,-490.0,0.00027397,3]
[368467456,1751187045875,-490.0,0.00027397,3]
[368467457,1751187045885,-490.0,0.00027397,3]
[368467458,1751187045894,-1808.6,0.00027397,3]
[368467459,1751187045904,-490.0,0.00027397,3]
[368467460,1751187045914,-490.0,0.00027397,3]
[368467461,1751187045924,-490.0,0.00027397,3]
[368467462,1751187045934,-490.0,0.00027397,3]
[368467464,1751187045943,-490.0,0.00027397,3]
[368467466,1751187045953,-490.0,0.00027397,3]
[368467467,1751187045962,-626.62,0.00027397,3]
[368467468,1751187045972,-490.0,0.00027397,3]
[368467469,1751187045981,-490.0,0.00027397,3]
[368467471,1751187045990,-688.07,0.00027397,3]
[368467472,1751187045999,-490.0,0.00027397,3]
[368467475,1751187046009,-490.0,0.00027397,3]
[368467476,1751187046019,-1956.43,0.00027397,3]
[368467477,1751187046028,-490.0,0.00027397,3]
[368467478,1751187046038,-564.79,0.00027397,3]
[368467479,1751187046047,-490.0,0.00027397,3]
[368467481,1751187046057,-1164.5,0.00027397,3]
[368467483,1751187046066,-490.0,0.00027397,3]
[368467485,1751187046076,-490.0,0.00027397,3]
[368467487,1751187046086,-1465.83,0.00027397,3]
[368467489,1751187046095,-2046.37,0.00027397,3]
[368467491,1751187046104,-490.0,0.00027397,3]
[368467493,1751187046114,-490.0,0.00027397,3]
[368467495,1751187046123,-490.0,0.00027397,3]
[368467497,1751187046133,-490.0,0.00027397,3]
[368467499,1751187046142,-1917.1,0.00027397,3]
[368467501,1751187046152,-605.28,0.00027397,3]
[368467503,1751187046161,-490.0,0.00027397,3]
[368467504,1751187046171,-490.0,0.00027397,3]
[368467505,1751187046180,-490.0,0.00027397,3]
[368467507,1751187046190,-490.0,0.00027397,3]
[368467509,1751187046200,-490.0,0.00027397,3]
[368467511,1751187046209,-490.0,0.00027397,3]
[368467513,1751187046219,-490.0,0.00027397,3]
[368467515,1751187046228,-531.37,0.00027397,3]
[368467517,1751187046237,-490.0,0.00027397,3]
[368467519,1751187046247,-712.89,0.00027397,3]
[368467521,1751187046256,-612.03,0.00027397,3]
[368467523,1751187046266,-490.0,0.00027397,3]
[368467525,1751187046275,-509.81,0.00027397,3]
[368467527,1751187046284,-490.0,0.00027397,3]
[368467529,1751187046293,-490.0,0.00027397,3]
[368467530,1751187046303,-618.48,0.00027397,3]
[368467532,1751187046312,-618.48,0.00027397,3]
[368467534,1751187046321,-689.81,0.00027397,3]
[368467536,1751187046331,-618.48,0.00027397,3]
[368467538,1751187046341,-618.48,0.00027397,3]
[368467540,1751187046351,-661.06,0.00027397,3]
[368467542,1751187046361,-490.0,0.00027397,3]
[368467544,1751187046371,-618.48,0.00027397,3]
[368467546,1751187046381,-618.48,0.00027397,3]
[368467548,1751187046390,-618.48,0.00027397,3]
[368467550,1751187046400,-2108.39,0.00027397,3]
[368467552,1751187046409,-490.0,0.00027397,3]
[368467554,1751187046419,-618.48,0.00027397,3]
[368467556,1751187046428,-618.48,0.00027397,3]
[368467557,1751187046437,-1382.63,0.00027397,3]
[368467559,1751187046446,-618.48,0.00027397,3]
[368467561,1751187046455,-618.48,0.00027397,3]
[368467563,1751187046464,-618.48,0.00027397,3]
[368467565,1751187046473,-618.48,0.00027397,3]
[368467567,1751187046483,-490.0,0.00027397,3]
[368467569,1751187046492,-490.0,0.00027397,3]
[368467571,1751187046501,-490.0,0.00027397,3]
[368467573,1751187046511,-1085.27,0.00027397,3]
[368467575,1751187046520,-490.0,0.00027397,3]
[368467577,1751187046529,-1183.19,0.00027397,3]
[368467579,1751187046539,-490.0,0.00027397,3]
[368467581,1751187046548,-490.0,0.00027397,3]
[368467583,1751187046557,-490.0,0.00027397,3]
[368467584,1751187046571,-1107.02,0.00027397,3]
[368467586,1751187046580,-826.64,0.00027397,3]
[368467588,1751187046589,-602.11,0.00027397,3]
[368467590,1751187046598,-1777.68,0.00027397,3]
[368467592,1751187046608,-1021.3,0.00027397,3]
[368467594,1751187046618,-490.0,0.00027397,3]
[368467596,1751187046627,-490.0,0.00027397,3]
[368467598,1751187046636,-718.66,0.00027397,3]
[368467600,1751187046646,-490.0,0.00027397,3]
[368467602,1751187046657,-909.83,0.00027397,3]
[368467604,1751187046666,-490.0,0.00027397,3]
[368467606,1751187046676,-490.0,0.00027397,3]
[368467608,1751187046685,-1727.62,0.00027397,3]
[368467609,1751187046695,-490.0,0.00027397,3]
[368467622,1751187046810,-818.3,0.00027397,3]
[368467624,1751187046820,-1024.08,0.00027397,3]
[368467626,1751187046830,-585.29296046,0.00027397,3]
[368467628,1751187046839,-2838.79,0.00027397,3]
[368467630,1751187046848,-490.0,0.00027397,3]
[368467631,1751187046861,-490.0,0.00027397,3]
[368467633,1751187046872,-1026.32,0.00027397,3]
[368467635,1751187046881,-1197.63,0.00027397,3]
[368467637,1751187046891,-490.0,0.00027397,3]
[368467639,1751187046901,-490.0,0.00027397,3]
[368467641,1751187046911,-490.0,0.00027397,3]
[368467643,1751187046920,-490.0,0.00027397,3]
[368467645,1751187046930,-490.0,0.00027397,3]
[368467647,1751187046940,-490.0,0.00027397,3]
[368467649,1751187046950,-490.0,0.00027397,3]
[368467651,1751187046960,-490.0,0.00027397,3]
[368467653,1751187046969,-1069.08,0.00027397,3]
[368467654,1751187046979,-512.96396481,0.00027397,3]
[368467655,1751187046989,-1087.17,0.00027397,3]
[368467656,1751187046999,-490.0,0.00027397,3]
[368467657,1751187047009,-532.4,0.00027397,3]
[368467658,1751187047019,-491.01670181,0.00027397,3]
[368467659,1751187047029,-490.0,0.00027397,3]
[368467660,1751187047038,-505.51571617,0.00027397,3]
[368467661,1751187047047,-500.0,0.00027397,3]
[368467662,1751187047058,-747.24,0.00027397,3]
[368467663,1751187047067,-490.0,0.00027397,3]
[368467664,1751187047077,-3147.9,0.00027397,3]
[368467665,1751187047087,-490.0,0.00027397,3]
[368467666,1751187047097,-807.88,0.00027397,3]
[368467667,1751187047106,-490.0,0.00027397,3]
[368467668,1751187047116,-935.05,0.00027397,3]
[368467669,1751187047126,-1197.59,0.00027397,3]
[368467670,1751187047136,-1869.27,0.00027397,3]
[368467671,1751187047146,-3477.27,0.00027397,3]
[368467672,1751187047155,-490.0,0.00027397,3]
[368467673,1751187047164,-490.0,0.00027397,3]
[368467674,1751187047173,-490.0,0.00027397,3]
[368467675,1751187047183,-490.0,0.00027397,3]
[368467676,1751187047193,-490.0,0.00027397,3]
[368467677,1751187047202,-490.0,0.00027397,3]
[368467678,1751187047212,-490.0,0.00027397,3]
[368467679,1751187047222,-490.0,0.00027397,3]
[368467680,1751187047231,-1381.92,0.00027397,3]
[368467681,1751187047240,-490.0,0.00027397,3]
[368467682,1751187047250,-490.0,0.00027397,3]
[368467683,1751187047260,-490.0,0.00027397,3]
[368467684,1751187047270,-6669.48,0.00027397,3]
[368467685,1751187047279,-1377.57,0.00027397,3]
[368467686,1751187047289,-490.0,0.00027397,3]
[368467687,1751187047299,-1822.71,0.00027397,3]
[368467688,1751187047309,-490.0,0.00027397,3]
[368467689,1751187047318,-531.92339178,0.00027397,3]
[368467690,1751187047327,-490.0,0.00027397,3]
[368467691,1751187047337,-490.0,0.00027397,3]
[368467692,1751187047346,-528.23,0.00027397,3]
[368467694,1751187047355,-490.0,0.00027397,3]
[368467696,1751187047364,-524.42278624,0.00027397,3]
[368467698,1751187047374,-1746.81,0.00027397,3]
[368467700,1751187047383,-1407.26,0.00027397,3]
[368467702,1751187047392,-503.61,0.00027397,3]
[368467704,1751187047401,-490.0,0.00027397,3]
[368467706,1751187047410,-490.0,0.00027397,3]
[368467707,1751187047418,-2392.16,0.00027397,3]
[368467709,1751187047427,-490.0,0.00027397,3]
[368467711,1751187047437,-2697.87,0.00027397,3]
[368467713,1751187047445,-490.0,0.00027397,3]
[368467715,1751187047454,-490.0,0.00027397,3]
[368467717,1751187047464,-783.14,0.00027397,3]
[368467719,1751187047473,-493.92598629,0.00027397,3]
[368467721,1751187047482,-490.0,0.00027397,3]
[368467723,1751187047492,-1160.13,0.00027397,3]
[368467725,1751187047501,-9222.48,0.00027397,3]
[368467727,1751187047510,-490.0,0.00027397,3]
[368467729,1751187047519,-490.0,0.00027397,3]
[368467731,1751187047527,-550.64,0.00027397,3]
[368467733,1751187047537,-490.0,0.00027397,3]
[368467735,1751187047545,-490.0,0.00027397,3]
[368467736,1751187047554,-1931.45,0.00027397,3]
[368467738,1751187047563,-490.0,0.00027397,3]
[368467740,1751187047573,-525.11337611,0.00027397,3]
[368467742,1751187047582,-543.87,0.00027397,3]
[368467744,1751187047591,-2954.89,0.00027397,3]
[368467746,1751187047600,-713.43,0.00027397,3]
[368467748,1751187047609,-490.0,0.00027397,3]
[368467750,1751187047619,-653.16,0.00027397,3]
[368467752,1751187047628,-3027.94,0.00027397,3]
[368467754,1751187047638,-1503.5,0.00027397,3]
[368467755,1751187047647,-490.0,0.00027397,3]
[368467756,1751187047656,-490.0,0.00027397,3]
[368467757,1751187047665,-647.85,0.00027397,3]
[368467758,1751187047675,-183505.56,0.00027397,3]
[368467759,1751187047684,-6987.11,0.00027397,3]
[368467760,1751187047694,-741.54,0.00027397,3]
[368467761,1751187047703,-1190.4,0.00027397,3]
[368467762,1751187047712,-4847.54,0.00027397,3]
[368467763,1751187047721,-490.0,0.00027397,3]
[368467764,1751187047730,-490.0,0.00027397,3]
[368467765,1751187047740,-2275.78,0.00027397,3]
[368467766,1751187047751,-490.0,0.00027397,3]
[368467767,1751187047761,-496.04894198,0.00027397,3]
[368467768,1751187047770,-490.0,0.00027397,3]
[368467769,1751187047779,-490.0,0.00027397,3]
[368467770,1751187047788,-526.36,0.00027397,3]
[368467771,1751187047798,-1619.13,0.00027397,3]
[368467772,1751187047807,-2179.35,0.00027397,3]
[368467773,1751187047816,-490.0,0.00027397,3]
[368467774,1751187047826,-9670.36,0.00027397,3]
[368467776,1751187047835,-490.0,0.00027397,3]
[368467778,1751187047844,-495.78079685,0.00027397,2]
[368467780,1751187047854,-490.0,0.00027397,3]
[368467782,1751187047865,-490.0,0.00027397,3]
[368467784,1751187047875,-5529.27,0.00027397,3]
[368467786,1751187047884,-490.0,0.00027397,3]
[368467788,1751187047893,-490.0,0.00027397,3]
[368467790,1751187047902,-2767.26,0.00027397,3]
[368467792,1751187047911,-490.0,0.00027397,3]
[368467794,1751187047921,-679.97,0.00027397,3]
[368467796,1751187047930,-490.0,0.00027397,3]
[368467798,1751187047939,-1212.51,0.00027397,3]
[368467800,1751187047948,-490.0,0.00027397,3]
[368467802,1751187047958,-1335.89,0.00027397,3]
[368467804,1751187047966,-22183.76,0.00027397,3]
[368467806,1751187047976,-1879.1,0.00027397,3]
[368467807,1751187047985,-490.0,0.00027397,3]
[368467809,1751187047994,-1016.84,0.00027397,3]
[368467811,1751187048003,-490.0,0.00027397,3]
[368467813,1751187048012,-490.0,0.00027397,3]
[368467815,1751187048021,-490.0,0.00027397,3]
[368467817,1751187048031,-490.0,0.00027397,3]
[368467819,1751187048040,-1165.75,0.00027397,3]
[368467821,1751187048049,-490.0,0.00027397,3]
[368467824,1751187048060,-490.0,0.00027397,3]
[368467825,1751187048070,-592.48752408,0.00027397,3]
[368467826,1751187048079,-490.0,0.00027397,3]
[368467828,1751187048088,-801.36,0.00027397,3]
[368467830,1751187048099,-1652.83,0.00027397,3]
[368467832,1751187048108,-490.0,0.00027397,3]
[368467834,1751187048118,-888.54,0.00027397,3]
[368467836,1751187048129,-490.0,0.00027397,3]
[368467838,1751187048138,-8978.15,0.00027397,3]
[368467840,1751187048148,-5301.58,0.00027397,3]
[368467842,1751187048158,-491.81,0.00027397,3]
[368467844,1751187048168,-490.0,0.00027397,3]
[368467846,1751187048179,-2725.74,0.00027397,3]
[368467848,1751187048189,-520.38,0.00027397,3]
[368467850,1751187048199,-490.0,0.00027397,3]
[368467851,1751187048208,-879.57,0.00027397,3]
[368467853,1751187048218,-490.0,0.00027397,3]
[368467855,1751187048227,-597.55,0.00027397,3]
[368467857,1751187048237,-778.91,0.00027397,3]
[368467859,1751187048246,-800.6,0.00027397,3]
[368467861,1751187048257,-3378.89,0.00027397,3]
[368467863,1751187048266,-490.0,0.00027397,3]
[368467865,1751187048276,-490.0,0.00027397,3]
[368467867,1751187048285,-490.0,0.00027397,3]
[368467869,1751187048294,-490.0,0.00027397,3]
[368467871,1751187048305,-490.0,0.00027397,3]
[368467873,1751187048314,-490.0,0.00027397,3]
[368467875,1751187048324,-1934.49,0.00027397,3]
[368467877,1751187048334,-490.0,0.00027397,3]
[368467879,1751187048344,-490.0,0.00027397,3]
[368467881,1751187048353,-500.0,0.00027397,3]
[368467883,1751187048363,-500.0,0.00027397,3]
[368467885,1751187048373,-490.0,0.00027397,3]
[368467887,1751187048382,-500.0,0.00027397,3]
[368467889,1751187048392,-490.0,0.00027397,3]
[368467891,1751187048402,-490.0,0.00027397,3]
[368467893,1751187048411,-490.0,0.00027397,3]
[368467895,1751187048420,-490.0,0.00027397,3]
[368467896,1751187048430,-490.0,0.00027397,3]
[368467898,1751187048439,-1608.13,0.00027397,3]
[368467900,1751187048449,-490.0,0.00027397,3]
[368467902,1751187048458,-627.49,0.00027397,3]
[368467904,1751187048469,-490.0,0.00027397,3]
[368467906,1751187048478,-490.0,0.00027397,3]
[368467908,1751187048488,-4109.88,0.00027397,3]
[368467910,1751187048499,-1752.09,0.00027397,3]
[368467913,1751187048510,-490.0,0.00027397,3]
[368467914,1751187048519,-9420.4,0.00027397,3]
[368467916,1751187048529,-490.0,0.00027397,3]
[368467918,1751187048538,-3124.52,0.00027397,3]
[368467920,1751187048547,-490.0,0.00027397,3]
[368467922,1751187048557,-415.20232735,0.00027397,3]
[368467924,1751187048567,-1268.38,0.00027397,3]
[368467926,1751187048579,-1706.25,0.00027397,3]
[368467928,1751187048588,-490.0,0.00027397,3]
[368467930,1751187048598,-490.0,0.00027397,3]
[368467932,1751187048608,-2005.66,0.00027397,3]
[368467934,1751187048618,-2374.12,0.00027397,3]
[368467936,1751187048627,-490.0,0.00027397,3]
[368467938,1751187048637,-490.0,0.00027397,3]
[368467940,1751187048647,-2394.5,0.00027397,3]
[368467942,1751187048656,-1814.02,0.00027397,3]
[368467944,1751187048666,-1023.82,0.00027397,3]
[368467946,1751187048675,-4073.14,0.00027397,3]
[368467948,1751187048685,-4329.64,0.00027397,3]
[368467950,1751187048695,-490.0,0.00027397,3]
[368467952,1751187048704,-490.0,0.00027397,3]
[368467954,1751187048713,-490.0,0.00027397,3]
[368467956,1751187048722,-490.0,0.00027397,3]
[368467958,1751187048731,-490.0,0.00027397,3]
[368467960,1751187048740,-1654.41,0.00027397,3]
[368467961,1751187048750,-7586.35,0.00027397,3]
[368467963,1751187048759,-490.0,0.00027397,3]
[368467965,1751187048768,-490.0,0.00027397,3]
[368467967,1751187048778,-1721.76,0.00027397,3]
[368467969,1751187048787,-1727.96,0.00027397,3]
[368467971,1751187048797,-4567.85,0.00027397,3]
[368467973,1751187048806,-490.0,0.00027397,3]
[368467975,1751187048816,-490.0,0.00027397,3]
[368467977,1751187048825,-490.0,0.00027397,3]
[368467979,1751187048834,-602.77647467,0.00027397,3]
[368467981,1751187048843,-491.94828239,0.00027397,3]
[368467983,1751187048854,-490.0,0.00027397,3]
[368467985,1751187048866,-879.38,0.00027397,3]
[368467987,1751187048877,-1030.1,0.00027397,3]
[368467989,1751187048887,-490.0,0.00027397,3]
[368467991,1751187048896,-2029.53,0.00027397,3]
[368467993,1751187048905,-2270.02,0.00027397,3]
[368467995,1751187048915,-490.0,0.00027397,3]
[368467997,1751187048924,-490.0,0.00027397,3]
[368467999,1751187048933,-490.0,0.00027397,3]
[368468001,1751187048942,-2004.11,0.00027397,3]
[368468003,1751187048951,-2902.63,0.00027397,3]
[368468005,1751187048960,-410.57404717,0.00027397,3]
[368468007,1751187048969,-490.0,0.00027397,3]